Cogmind - Beta 15 @@@ ROGUE MODE // 2025.09.26 @ 19:51:02 Player: Figgis Result: Destroyed by GH-5QC(R) with Subdweller Beam Cannon Performance ------------- Evolutions (0) 0 Regions Visited (2) 400 Robots Destroyed (7) 35 Value Destroyed (154) 154 Prototype IDs (0) 0 Alien Tech Used (0) 0 Bonus (0) 0 TOTAL SCORE: 589 Bonus ------- None Cogmind --------- Core Integrity 0/250 Matter 278/300 Energy 38/100 System Corruption 0% Temperature Cool (9) Movement Core (350) Ox6 Location -10/Subcaves Parts ------- > --- POWER (1) -------- (None) > --- PROPULSION (2) --- Aluminum Leg > --- UTILITY (2) ------ Large Storage Unit > --- WEAPON (2) ------- Light Assault Rifle > --- INVENTORY (15) --- Ion Engine Ion Engine Aluminum Leg Flight Unit Assault Rifle Datajack Mining Laser Peak State ------------ > --- POWER ------------ Ion Engine > --- PROPULSION ------- Aluminum Leg Aluminum Leg > --- UTILITY ---------- Small Storage Unit Large Storage Unit > --- WEAPON ----------- Assault Rifle Light Assault Rifle > --- INVENTORY -------- Ion Engine Medium Laser [Rating: 7] Favorites ----------- Power Ion Engine Engine Ion Engine Propulsion Aluminum Leg Leg Aluminum Leg Utility Large Storage Unit Storage Large Storage Unit Weapon Assault Rifle Energy Gun Medium Laser Ballistic Gun Assault Rifle Special Weapon Mining Laser Build | -11 -10 -10 ------- Run | Yrd Mat Sub Slots Evolved . | . . . Power . | . . . Propulsion . | . . . Utility . | . . . Weapon . | . . . Parts Attached 11 | 3 4 4 Power 1 | . 1 . Engine 1 | . 1 . Core . | . . . Reactor . | . . . Propulsion 3 | 2 . 1 Treads . | . . . Leg 3 | 2 . 1 Wheel . | . . . Hover . | . . . Flight . | . . . Utility 2 | . 2 . Device . | . . . Storage 2 | . 2 . Processor . | . . . Hackware . | . . . Protection . | . . . Artifact . | . . . Weapon 5 | 1 1 3 Energy Gun 1 | . . 1 Energy Cannon . | . . . Ballistic Gun 3 | 1 1 1 Ballistic Cannon . | . . . Launcher . | . . . Special Weapon 1 | . . 1 Impact Weapon . | . . . Slashing Weapon . | . . . Piercing Weapon . | . . . Special Melee Weapon . | . . . Unidentified Prototypes . | . . . Parts Lost 5 | . . 5 Power 1 | . . 1 Propulsion 2 | . . 2 Utility . | . . . Weapon 2 | . . 2 Highest Loss Streak 5 | . . 5 To Critical Strikes . | . . . Average Backups 7 | 3 6 8 Power 1 | 1 1 2 Propulsion 2 | . 1 2 Utility . | . . . Weapon 2 | 1 2 3 Tool/Special . | . . . Unused Backups 5 | . . 5 Power 2 | . . 2 Propulsion 2 | . . 2 Utility . | . . . Weapon . | . . . Tool/Special 1 | . . 1 Average Slot Usage (%) 83 | . 81 84 Engine 13 | . 12 13 Leg 27 | . 28 27 Storage 13 | . 12 14 Ballistic Gun 22 | . 26 19 Special Weapon 4 | . . 6 Peak Build Rating 7 | 3 7 6 Average Rating 5 | 1 5 5 On Entrance 3 | . 3 6 Naked Turns . | . . . Heaviest Build 29 | 1 28 29 Greatest Support 20 | 3 20 20 Greatest Overweight (x) 1 | . 1 1 Average Overweight (x) . | . . 1 Largest Inventory Capacity 15 | 5 15 15 Average Capacity 14 | 5 13 15 Most Carried 9 | 5 8 9 Average Carried 8 | 4 6 8 Final Capacity 15 | 5 15 15 Final Carried 8 | 5 8 7 Class Distribution -------------------- 100% | Mutant Dominant Class ---------------- Mutant | -10/Materials Mutant | -10/Subcaves Resources | -11 -10 -10 ----------- Run | Yrd Mat Sub Matter Collected 378 | 179 114 85 Remotely . | . . . Salvage Created 204 | . 114 90 Parts 14 | . 7 7 Haulers Intercepted . | . . . Recyclers Shooed . | . . . Parts Field Recycled . | . . . Retrieved Matter . | . . . Parts Self-Destructed 3 | . . 3 Prevented . | . . . Kills | -11 -10 -10 ------- Run | Yrd Mat Sub Combat Hostiles Destroyed 6 | . 2 4 Guns 6 | . 2 4 Classes Destroyed 4 | . 2 2 Operator 1 | . 1 . Swarmer 3 | . . 3 Grunt 2 | . 2 . Subdweller 1 | . . 1 Best Kill Streak 3 | . 2 3 Combat Bots Only 3 | . 2 3 Max Kills in Single Turn 1 | . 1 1 Gunslinging . | . . . Exploded . | . . . Melee . | . . . Uniques/NPCs Destroyed . | . . . Combat | -11 -10 -10 -------- Run | Yrd Mat Sub Hostile Shots Fired 42 | . 4 38 Missed . | . . . Hits 42 | . 4 38 Projectile 42 | . 4 38 Damage Taken 743 | . 42 701 Core 251 | . 20 231 Absorbed by Shields . | . . . Core Remaining (%) 100 | 100 . . Volleys Fired 39 | . 15 24 Largest 2 | . 2 2 Hottest 150 | . 40 150 Shots Fired 60 | . 25 35 Gun 47 | . 25 22 Cannon . | . . . Launcher . | . . . Special 13 | . . 13 Kinetic 42 | . 25 17 Thermal 18 | . . 18 Explosive . | . . . Electromagnetic . | . . . Robot Hit Streak 6 | . 6 6 Robot Miss Streak 7 | . 4 7 Penetration Max . | . . . Secondary Targets 1 | . . 1 Max Gunslinging Chain 1 | . . 1 Shots Hit Robots 26 | . 11 15 Core Hits 16 | . 8 8 Critical Kills . | . . . Critical Parts Destroyed . | . . . Critical Strikes 1 | . . 1 Burn 1 | . . 1 Melee Attacks . | . . . Impact . | . . . Slashing . | . . . Piercing . | . . . Sneak Attacks . | . . . Combat Hostiles . | . . . Follow-up Attacks . | . . . Damage Inflicted 327 | . 106 221 Guns 279 | . 106 173 Cannons . | . . . Explosions . | . . . Melee . | . . . Ramming . | . . . Kinetic 231 | . 106 125 Thermal 96 | . . 96 Explosive . | . . . Electromagnetic . | . . . Impact . | . . . Slashing . | . . . Piercing . | . . . Highest Corruption . | . . . Average Corruption . | . . . Corruption Purged . | . . . Corruption Blocked . | . . . Overload Shots . | . . . Overflow Damage . | . . . Projectiles . | . . . Explosions . | . . . Melee . | . . . Knockbacks . | . . . Impact . | . . . Kinetic . | . . . Secondary . | . . . Self-Inflicted Damage . | . . . Shots . | . . . Rammed . | . . . Targets Rammed . | . . . Kicked . | . . . Crushed . | . . . Highest Temperature 12 | . 12 8 Average Temperature 8 | . 9 8 Received Heat Transfer 186 | . 24 162 Siege Activations . | . . . Martial Activations . | . . . Shielding Activations . | . . . Robots Disrupted . | . . . Combat Hostiles . | . . . Robots Corrupted . | . . . Combat Hostiles . | . . . Parts Fried . | . . . Impact Corruptions . | . . . Robots Melted . | . . . Combat Hostiles . | . . . Parts Melted 2 | . . 2 Heat Transferred 322 | . . 322 Parts Sabotaged . | . . . Parts Stolen . | . . . Parts Stripped . | . . . Power Chain Reactions . | . . . Alert | -11 -10 -10 ------- Run | Yrd Mat Sub Maximum Alert Level . | . . . Low Security (%) 100 | 100 100 . Level 1 . | . . . Level 2 . | . . . Level 3 . | . . . Level 4 . | . . . Level 5 . | . . . High Security . | . . . Max Security . | . . . Peak Influence 40 | . 40 . Initial . | . . . Average 5 | . 6 . Influence Increases 125 | . 55 70 Destroy 0b10 Robot/C 100 | . 40 60 Destroy 0b10 Robot/NC 5 | . 5 . Destroy Leader 20 | . 10 10 Influence Decreases 125 | . 55 70 Time Decay 125 | . 55 70 Squads Dispatched 1 | . 1 . Investigation . | . . . Extermination . | . . . Reinforcement 1 | . 1 . Assault . | . . . Garrison . | . . . Intercept . | . . . Searches Triggered . | . . . Construction Impeded . | . . . Haulers Reinforced . | . . . Active Scanning Responses . | . . . Cargo Convoy Interrupts . | . . . Stealth | -11 -10 -10 --------- Run | Yrd Mat Sub Distress Signals . | . . . Communications Jammed . | . . . Distress Signals . | . . . Times Spotted 12 | . 6 6 Peak Tracking Total 3 | . 2 3 Tactical Retreats . | . . . Traps | -11 -10 -10 ------- Run | Yrd Mat Sub Traps Triggered . | . . . Indirectly . | . . . Trap Hack Attempts . | . . . Triggered . | . . . Disarmed . | . . . Reprogrammed . | . . . Reused . | . . . Traps Extracted . | . . . Installed . | . . . Triggered . | . . . Machines | -11 -10 -10 ---------- Run | Yrd Mat Sub Machines Disabled . | . . . Max in Single Turn . | . . . Machines Repaired . | . . . Machines Dismantled . | . . . Machines Sabotaged . | . . . Overloaded Fab Kills . | . . . Hacking | -11 -10 -10 --------- Run | Yrd Mat Sub Machines Accessed . | . . . Terminals . | . . . Fabricators . | . . . Repair Stations . | . . . Recycling Units . | . . . Scanalyzers . | . . . Garrison Access . | . . . Total Hacks . | . . . Successful . | . . . Failed . | . . . Catastrophic . | . . . Database Lockouts . | . . . Manual . | . . . Terminals . | . . . Fabricators . | . . . Repair Stations . | . . . Recycling Units . | . . . Scanalyzers . | . . . Garrison Access . | . . . Terminal Hacks . | . . . Fabricator Hacks . | . . . Repair Station Hacks . | . . . Recycling Unit Hacks . | . . . Scanalyzer . | . . . Garrison Access Hacks . | . . . Unauthorized Hacks . | . . . Terminals . | . . . Fabricators . | . . . Repair Stations . | . . . Recycling Units . | . . . Scanalyzers . | . . . Garrison Access . | . . . Data Cores Recovered . | . . . Used . | . . . Hacking Detections . | . . . Full Trace Events . | . . . Feedback Events . | . . . Feedback Blocked . | . . . Robot Schematics Acquired . | . . . Robots Built . | . . . Authchips . | . . . Time . | . . . Total Robot Build Rating . | . . . Part Schematics Acquired . | . . . Parts Built . | . . . Authchips . | . . . Time . | . . . Total Part Build Rating . | . . . Parts Repaired . | . . . Time . | . . . Parts Recycled . | . . . Recycled Matter . | . . . Retrieved Matter . | . . . Retrieved Components . | . . . Parts Scanalyzed . | . . . Part Schematics Acquired . | . . . Parts Damaged . | . . . Bothacking | -11 -10 -10 ------------ Run | Yrd Mat Sub Used RIF Installer . | . . . Robots Hacked . | . . . Non-combat . | . . . Combat . | . . . Robot Hacks Applied . | . . . Relay Couplers Released . | . . . Fabnet Peak Effective % . | . . . Robots Rewired . | . . . Allies Hacked . | . . . Hacks Repelled . | . . . Allies | -11 -10 -10 -------- Run | Yrd Mat Sub Total Allies . | . . . Largest Group . | . . . Highest-Rated Group . | . . . Highest-Rated Ally . | . . . Total Orders . | . . . Ally Attacks . | . . . Total Damage . | . . . Kills . | . . . Allies Corrupted . | . . . Allies Melted . | . . . Intel | -11 -10 -10 ------- Run | Yrd Mat Sub Active Infowar (turns) . | . . . Robot Analysis Total . | . . . Derelict Logs Recovered . | . . . Drone Launches . | . . . Drone Recoveries . | . . . Exploration | -11 -10 -10 ------------- Run | Yrd Mat Sub Turns Passed 1048 | 29 362 657 Spaces Moved 454 | 38 184 232 Core 74 | 38 36 . Treads . | . . . Legs 380 | . 148 232 Wheels . | . . . Hover . | . . . Flight . | . . . Fastest Speed 50 | 50 50 190 Average Speed 165 | 50 158 190 Slowest Speed 190 | 50 190 190 Overloaded Moves . | . . . Propulsion Burnouts . | . . . Robots Hopped . | . . . Potential Cave-ins . | . . . Cave-ins Triggered . | . . . Exploration Rate (%) 19 | 3 41 14 Regions Visited 2 Branch Regions 1 Pre-discovered Areas . | . . . Known Exits Taken . | . . . Unknown Exits Taken 2 | 1 1 . Scrap Searched . | . . . Spaces Dug . | . . . Terrain Destroyed . | . . . Melee . | . . . Projectile . | . . . AOE . | . . . Terrain Rammed . | . . . Walls Destroyed . | . . . Machines Disabled . | . . . Actions | -11 -10 -10 --------- Run | Yrd Mat Sub Total 666 | 46 233 387 Wait 145 | . 23 122 Move 452 | 37 183 232 Hop . | . . . Pick Up 14 | 6 7 1 Fast Attach 2 | 2 . . Attach 8 | 1 4 3 Detach 1 | . . 1 Swap 4 | . . 4 Drop 1 | . 1 . Fire 39 | . 15 24 Melee . | . . . Ram . | . . . Kick . | . . . Crush . | . . . Escape Stasis . | . . . Rewire . | . . . Trap . | . . . Miscellaneous . | . . . Route ------- -11/Scrapyard -10/Materials (discovered 2 exits: [*Min] / [*Sub]) -10/Subcaves History --------- Turn | Location | Event 2 | -11/Scrapyard | Met Revision 17 9 | -11/Scrapyard | Discovered new exit (range 15) 30 | -11/Scrapyard | Entered Materials 235 | -10/Materials | Discovered new exit (range 16) 277 | -10/Materials | Discovered new exit (range 7) 304 | -10/Materials | Build established: Mutant 392 | -10/Materials | Entered Subcaves 1040 | -10/Subcaves | Core integrity fell below 50% 1048 | -10/Subcaves | Core integrity fell below 20% 1049 | -10/Subcaves | Destroyed by GH-5QC(R) with Subdweller Beam Cannon Last Messages --------------- 00757_ HP-XRL(u) builds Twisted Machinery. 00849_ VL-AU5(R) suffers critical hit (Burn). 00849_ Sub. Optics melted. 00849_ Sub. Machine Gun melted. 00849_ VL-AU5(R) destroyed. 00852_ Acquired 30 matter. 00853_ Subatomizers dissect the Sub. Monowheel. 00853_ HP-XRL(u) tweaks Twisted Machinery. 00863_ Subatomizers dissect the Sub. Monowheel. 00866_ Acquired 10 matter. 00866_ HP-XRL(u) tweaks Twisted Machinery. 00875_ Subatomizers dissect the Sub. Monowheel. 00891_ HP-XRL(u) tweaks Twisted Machinery. 00900_ Subatomizers dissect the Sub. Monowheel. 00937_ HP-XRL(u) builds Twisted Machinery. 01035_ Aluminum Leg destroyed. 01037_ Med. Laser destroyed. 01039_ Ion Engine destroyed. 01043_ Aluminum Leg destroyed. 01047_ Lgt. Assault Rifle destroyed. Map ----- +----------------------------------------------------+ | ?????????????????????????????????????????????????? | | ?????????????????????????????????????????????????? | | ?????????????????????????????????????????????????? | | ?????????????????????????????????????????????????? | | ?????????????????????????????????????????????????? | | ?????????????????????????????????????????????????? | | ?????????????????????????????????????????????????? | | ?????????????????????????????????????????????????? | | ?????????????????????????????????????????????????? | | ?????????????????????????????????????????????????? | | ?????????????????????????????????????????????????? | | ?????????????????????????????????????????????????? | | ?????????????????????????????????????????????????? | | ?????????????????????????????????????????????????? | | ?????????????????????????????????????????????????? | | ?????????????????????????????????????????????????? | | ???????????????????##?##???????###??????????????## | | ???????????????????# ??????## ?????????###?## | | ???????????????????# ? ?????## ????????## ### | | ???????????????????# ###### #????????# ^ | | ???????????????????# # # #????????# | | ???????????????"???? ###?????## # | | ??????????????"" ???? #?????# ## | | ??????????????" "???# ##?# ##????# ### | | ???????????????"" " ### ##### ###### | | ????????????????"""" R@ ^ | | ???????????????? """" R ^ | | ?????????????????# """"### ### ^ # ## | | ?????????????????## ""#??###?# ### ##### | | ??????????????????####???????## ##?###### #???## | | ??????????????????????????????#####???????###????? | | ?????????????????????????????????????????????????? | | ?????????????????????????????????????????????????? | | ?????????????????????????????????????????????????? | | ?????????????????????????????????????????????????? | | ?????????????????????????????????????????????????? | | ?????????????????????????????????????????????????? | | ?????????????????????????????????????????????????? | | ?????????????????????????????????????????????????? | | ?????????????????????????????????????????????????? | | ?????????????????????????????????????????????????? | | ?????????????????????????????????????????????????? | | ?????????????????????????????????????????????????? | | ?????????????????????????????????????????????????? | | ?????????????????????????????????????????????????? | | | | | | | | | | | +----------------------------------------------------+ Best States ------------- Heat Dissipation 25 Energy Generation 10 Energy Capacity 250 Matter Stores 300 Matter Capacity 300 Sight Range 16 Terrain Scan Density 10 Evasion (%) 50 Item Schematics ----------------- None Robot Schematics ------------------ None Fabricated ------------ Nothing Repaired ---------- Nothing Alien Tech Used ----------------- None Achievements -------------- None Challenges ------------ None Game ------ Seed SuspensionEnhancedTendrils Manual? 0 Play Time 00:06:32 Cumulative 185.5 hours Start 2025.09.26 @ 19:46:37 End 2025.09.26 @ 19:51:02 Sessions 1 Manual Loads 0 Difficulty Rogue Special Mode None Game No. 294 Rogue 291 Adventurer 3 Explorer 0 Win Type - Total 1 Types 1/0/0/0/0/0/0/0/0/0 Lore% 63 Gallery% 59 Achievement% 46 Wizard Run 0 Options --------- Layout 0 ASCII 0 Keyboard 0 Movement Mouse Keybinds 0 Fullscreen 2 Font 18/SmallcapsGlow Map View 76x50 Zoom Use 0% Tactical HUD 1 Map Filters NONE Filters NONE Steam 1 RUN: 751522e4-e951-4aea-9421-39a2e3826590